[Event "*** SCC Grand Prix: Titled Tuesday Blitz"]
[Site "Chess.com"]
[Date "2020.10.13"]
[Round "3"]
[White "Anton_Demchenko"]
[Black "DrMamaliga"]
[Result "1-0"]
[WhiteElo "2804"]
[BlackElo "2358"]
[TimeControl "180+1"]
[EndTime "10:30:18 PDT"]
[Termination "Anton_Demchenko won by resignation"]

1. e4 {[%clk 0:03:00.9]} 1... e5 {[%clk 0:02:58.6]} 2. Nf3 {[%clk 0:03:01.2]}
2... Nc6 {[%clk 0:02:58.6]} 3. Bc4 {[%clk 0:03:01.9]} 3... Nf6 {[%clk
0:02:57.1]} 4. d3 {[%clk 0:03:02.8]} 4... h6 {[%clk 0:02:56.2]} 5. O-O {[%clk
0:02:57.1]} 5... d6 {[%clk 0:02:55.7]} 6. Nbd2 {[%clk 0:02:57.4]} 6... g6 {[%clk
0:02:55.5]} 7. c3 {[%clk 0:02:57.9]} 7... Bg7 {[%clk 0:02:55.7]} 8. Re1 {[%clk
0:02:55.5]} 8... O-O {[%clk 0:02:53.8]} 9. Nf1 {[%clk 0:02:55.5]} 9... Na5
{[%clk 0:02:51.6]} 10. Bb5 {[%clk 0:02:55.4]} 10... a6 {[%clk 0:02:50.5]} 11.
Ba4 {[%clk 0:02:55.9]} 11... b5 {[%clk 0:02:50.6]} 12. Bc2 {[%clk 0:02:56.8]}
12... c5 {[%clk 0:02:51.2]} 13. Ng3 {[%clk 0:02:57.7]} 13... Nc6 {[%clk
0:02:48.2]} 14. h3 {[%clk 0:02:57.1]} 14... Re8 {[%clk 0:02:47.1]} 15. Bd2
{[%clk 0:02:53.4]} 15... d5 {[%clk 0:02:45.2]} 16. a4 {[%clk 0:02:51.9]} 16...
Be6 {[%clk 0:02:37.8]} 17. Qc1 {[%clk 0:02:47.8]} 17... Kh7 {[%clk 0:02:36.1]}
18. exd5 {[%clk 0:02:39.9]} 18... Bxd5 {[%clk 0:02:28]} 19. Nh2 {[%clk
0:02:36.2]} 19... Qd7 {[%clk 0:02:17.8]} 20. Be3 {[%clk 0:02:33.9]} 20... Bf8
{[%clk 0:02:02.8]} 21. Rd1 {[%clk 0:02:23.7]} 21... Qe6 {[%clk 0:01:59.7]} 22.
Re1 {[%clk 0:01:47.2]} 22... Bb3 {[%clk 0:01:55.7]} 23. axb5 {[%clk 0:01:42.8]}
23... axb5 {[%clk 0:01:54.1]} 24. Rxa8 {[%clk 0:01:42.5]} 24... Rxa8 {[%clk
0:01:55]} 25. Nhf1 {[%clk 0:01:38.1]} 25... Bxc2 {[%clk 0:01:49.5]} 26. Qxc2
{[%clk 0:01:39]} 26... Qd5 {[%clk 0:01:44.3]} 27. Ne4 {[%clk 0:01:32.7]} 27...
Nxe4 {[%clk 0:01:40.2]} 28. dxe4 {[%clk 0:01:33.6]} 28... Qe6 {[%clk 0:01:38.4]}
29. Bc1 {[%clk 0:01:23.5]} 29... Ra1 {[%clk 0:01:13]} 30. Ne3 {[%clk 0:01:22.1]}
30... Qa2 {[%clk 0:01:09.1]} 31. Nd5 {[%clk 0:01:17.2]} 31... Qa4 {[%clk
0:00:57.3]} 32. Qe2 {[%clk 0:01:16.6]} 32... b4 {[%clk 0:00:51.6]} 33. Kh2
{[%clk 0:01:13.3]} 33... bxc3 {[%clk 0:00:48.5]} 34. bxc3 {[%clk 0:01:14.2]}
34... Qa2 {[%clk 0:00:47.4]} 35. Qf3 {[%clk 0:01:14]} 35... Kg8 {[%clk
0:00:43.8]} 36. Qf6 {[%clk 0:01:08.2]} 36... Qa6 {[%clk 0:00:39.4]} 37. h4
{[%clk 0:00:36.1]} 37... Qc8 {[%clk 0:00:27.3]} 38. Qf3 {[%clk 0:00:30.5]} 38...
h5 {[%clk 0:00:23.1]} 39. g3 {[%clk 0:00:26.6]} 39... Qe6 {[%clk 0:00:19.8]} 40.
Kg2 {[%clk 0:00:25.1]} 40... Ne7 {[%clk 0:00:19]} 41. c4 {[%clk 0:00:24.1]}
41... Nc6 {[%clk 0:00:16.9]} 42. Qc3 {[%clk 0:00:24]} 42... Ra8 {[%clk
0:00:15.4]} 43. Bg5 {[%clk 0:00:24]} 43... Rc8 {[%clk 0:00:13.5]} 44. Rb1 {[%clk
0:00:23.1]} 44... Nd4 {[%clk 0:00:12.7]} 45. f3 {[%clk 0:00:23.6]} 45... f6
{[%clk 0:00:10.5]} 46. Nxf6+ {[%clk 0:00:23.2]} 46... Kf7 {[%clk 0:00:10.5]} 47.
Nd5 {[%clk 0:00:23.6]} 47... Rd8 {[%clk 0:00:09.7]} 48. Rb6 {[%clk 0:00:23]}
48... Rd6 {[%clk 0:00:07.8]} 49. Rb7+ {[%clk 0:00:23.4]} 49... Kg8 {[%clk
0:00:07.5]} 50. Nf6+ {[%clk 0:00:23.6]} 50... Qxf6 {[%clk 0:00:04.8]} 51. Bxf6
{[%clk 0:00:24.5]} 51... Rxf6 {[%clk 0:00:05.5]} 52. Rb8 {[%clk 0:00:17.7]}
52... Rxf3 {[%clk 0:00:05.2]} 53. Qxf3 {[%clk 0:00:15]} 53... Nxf3 {[%clk
0:00:06.1]} 54. Kxf3 {[%clk 0:00:15.9]} 54... Kf7 {[%clk 0:00:06.6]} 55. Rb7+
{[%clk 0:00:15.8]} 55... Be7 {[%clk 0:00:06.9]} 56. Rb6 {[%clk 0:00:13.2]} 56...
Bf6 {[%clk 0:00:05.3]} 57. Kg2 {[%clk 0:00:13.2]} 57... Be7 {[%clk 0:00:05.3]}
58. Kh3 {[%clk 0:00:13.7]} 58... Bf6 {[%clk 0:00:05]} 59. g4 {[%clk 0:00:14.1]}
59... Bg7 {[%clk 0:00:03.5]} 60. Rc6 {[%clk 0:00:13.3]} 60... Bf8 {[%clk
0:00:03.2]} 61. g5 {[%clk 0:00:10]} 61... Be7 {[%clk 0:00:01.8]} 62. Kg2 {[%clk
0:00:10.2]} 62... Bf8 {[%clk 0:00:01.8]} 63. Kf3 {[%clk 0:00:10.8]} 63... Be7
{[%clk 0:00:02.4]} 64. Ke2 {[%clk 0:00:11.5]} 64... Ke8 {[%clk 0:00:02.9]} 65.
Kd3 {[%clk 0:00:12.2]} 65... Kf7 {[%clk 0:00:03.1]} 66. Kc2 {[%clk 0:00:12.3]}
66... Ke8 {[%clk 0:00:02.9]} 67. Rxg6 {[%clk 0:00:11.3]} 1-0

[Event "*** SCC Grand Prix: Titled Tuesday Blitz"]
[Site "Chess.com"]
[Date "2020.10.13"]
[Round "3"]
[White "GoltsevDmitry2000"]
[Black "rasmussvane"]
[Result "0-1"]
[WhiteElo "2680"]
[BlackElo "2909"]
[TimeControl "180+1"]
[EndTime "10:30:21 PDT"]
[Termination "rasmussvane won by checkmate"]

1. e4 {[%clk 0:03:00]} 1... c6 {[%clk 0:03:00.1]} 2. Nf3 {[%clk 0:02:59.8]} 2...
d5 {[%clk 0:03:00.2]} 3. exd5 {[%clk 0:03:00.3]} 3... cxd5 {[%clk 0:03:00.5]} 4.
b3 {[%clk 0:03:00.9]} 4... Nf6 {[%clk 0:03:00.8]} 5. Bb2 {[%clk 0:03:01.1]} 5...
Nc6 {[%clk 0:03:01]} 6. Be2 {[%clk 0:02:59.9]} 6... Bg4 {[%clk 0:02:55]} 7. h3
{[%clk 0:02:59.6]} 7... Bh5 {[%clk 0:02:54.7]} 8. O-O {[%clk 0:02:57.4]} 8... e6
{[%clk 0:02:54.3]} 9. Nc3 {[%clk 0:02:54.8]} 9... a6 {[%clk 0:02:49.3]} 10. a4
{[%clk 0:02:50.7]} 10... Qc7 {[%clk 0:02:46.6]} 11. Re1 {[%clk 0:02:38.2]} 11...
Bd6 {[%clk 0:02:43.2]} 12. Na2 {[%clk 0:02:25.5]} 12... O-O {[%clk 0:02:33.4]}
13. Bxf6 {[%clk 0:02:20.6]} 13... gxf6 {[%clk 0:02:34.3]} 14. Nh4 {[%clk
0:02:20.7]} 14... Bg6 {[%clk 0:02:34.1]} 15. Nxg6 {[%clk 0:02:20.4]} 15... hxg6
{[%clk 0:02:35]} 16. c3 {[%clk 0:02:17.6]} 16... e5 {[%clk 0:02:13.2]} 17. d3
{[%clk 0:02:08.7]} 17... f5 {[%clk 0:02:10.8]} 18. b4 {[%clk 0:01:51.1]} 18...
Kg7 {[%clk 0:02:00.8]} 19. Qb3 {[%clk 0:01:34.6]} 19... Ne7 {[%clk 0:01:45.7]}
20. c4 {[%clk 0:01:28.2]} 20... dxc4 {[%clk 0:01:46.6]} 21. dxc4 {[%clk
0:01:29]} 21... e4 {[%clk 0:01:46.9]} 22. c5 {[%clk 0:01:23.2]} 22... Bh2+
{[%clk 0:01:46.9]} 23. Kh1 {[%clk 0:01:22.3]} 23... Be5 {[%clk 0:01:47.2]} 24.
Rad1 {[%clk 0:01:20.8]} 24... a5 {[%clk 0:01:25.2]} 25. Bb5 {[%clk 0:01:13.5]}
25... Rfd8 {[%clk 0:01:20.5]} 26. bxa5 {[%clk 0:01:12.7]} 26... Bd4 {[%clk
0:01:03.5]} 27. Rd2 {[%clk 0:00:41.8]} 27... Qxc5 {[%clk 0:00:14.1]} 28. Red1
{[%clk 0:00:34.5]} 28... Ng8 {[%clk 0:00:08.2]} 29. Bc4 {[%clk 0:00:27.7]} 29...
Nh6 {[%clk 0:00:06.3]} 30. Nb4 {[%clk 0:00:18]} 30... Bf6 {[%clk 0:00:05.3]} 31.
Nd5 {[%clk 0:00:17.8]} 31... Be5 {[%clk 0:00:03.6]} 32. Rc2 {[%clk 0:00:17.2]}
32... Qd6 {[%clk 0:00:03.3]} 33. Rb1 {[%clk 0:00:09]} 33... Rab8 {[%clk
0:00:03]} 34. Ne3 {[%clk 0:00:05.5]} 34... f4 {[%clk 0:00:03.1]} 35. Nd5 {[%clk
0:00:05]} 35... f3 {[%clk 0:00:03.6]} 36. Qb6 {[%clk 0:00:04.8]} 36... Qd7
{[%clk 0:00:03.4]} 37. Qb5 {[%clk 0:00:03.6]} 37... fxg2+ {[%clk 0:00:03.6]} 38.
Kxg2 {[%clk 0:00:04.5]} 38... Qf5 {[%clk 0:00:04.3]} 39. Rb3 {[%clk 0:00:04.3]}
39... Qg5+ {[%clk 0:00:04.7]} 40. Kf1 {[%clk 0:00:04.5]} 40... Nf5 {[%clk
0:00:04.9]} 41. Be2 {[%clk 0:00:04.5]} 41... Nd4 {[%clk 0:00:05]} 42. Qc4 {[%clk
0:00:03.7]} 42... Nxc2 {[%clk 0:00:05.3]} 43. Nb6 {[%clk 0:00:02.7]} 43... Nd4
{[%clk 0:00:04.1]} 44. Re3 {[%clk 0:00:02.9]} 44... Nxe2 {[%clk 0:00:04.2]} 45.
Kxe2 {[%clk 0:00:03.8]} 45... Bd4 {[%clk 0:00:04.5]} 46. Rg3 {[%clk 0:00:03.1]}
46... Qe5 {[%clk 0:00:03.9]} 47. Qc2 {[%clk 0:00:02.2]} 47... Bxb6 {[%clk
0:00:03.7]} 48. axb6 {[%clk 0:00:02.3]} 48... Rd3 {[%clk 0:00:03.9]} 49. Rg4
{[%clk 0:00:01.7]} 49... Rbd8 {[%clk 0:00:03.6]} 50. Kf1 {[%clk 0:00:02.3]}
50... Rd1+ {[%clk 0:00:03.8]} 51. Kg2 {[%clk 0:00:02.9]} 51... R1d2 {[%clk
0:00:03.9]} 52. Qc4 {[%clk 0:00:03.2]} 52... Qf5 {[%clk 0:00:03.7]} 53. Qc3+
{[%clk 0:00:03.4]} 53... Kg8 {[%clk 0:00:03.4]} 54. Qe3 {[%clk 0:00:03.9]} 54...
R2d3 {[%clk 0:00:03.1]} 55. Qh6 {[%clk 0:00:03.8]} 55... Rf3 {[%clk 0:00:03.1]}
56. Qh4 {[%clk 0:00:02.4]} 56... Rd2 {[%clk 0:00:03.1]} 57. Kg1 {[%clk
0:00:01.9]} 57... Rdxf2 {[%clk 0:00:03.4]} 58. Qd8+ {[%clk 0:00:02.3]} 58... Kg7
{[%clk 0:00:03.9]} 59. Qd4+ {[%clk 0:00:02.5]} 59... Qf6 {[%clk 0:00:04.5]} 60.
Qxe4 {[%clk 0:00:02.9]} 60... Rf1+ {[%clk 0:00:04.7]} 61. Kg2 {[%clk 0:00:03.5]}
61... R3f2+ {[%clk 0:00:05.3]} 62. Kg3 {[%clk 0:00:04.4]} 62... Rg1+ {[%clk
0:00:05.7]} 63. Qg2 {[%clk 0:00:03.4]} 63... Rgxg2# {[%clk 0:00:06.2]} 0-1

[Event "*** SCC Grand Prix: Titled Tuesday Blitz"]
[Site "Chess.com"]
[Date "2020.10.13"]
[Round "3"]
[White "Mikedannnn"]
[Black "Harsha_Bharathakoti"]
[Result "0-1"]
[WhiteElo "2505"]
[BlackElo "2759"]
[TimeControl "180+1"]
[EndTime "10:30:21 PDT"]
[Termination "Harsha_Bharathakoti won by resignation"]

1. e4 {[%clk 0:03:00.9]} 1... c6 {[%clk 0:02:59.8]} 2. d4 {[%clk 0:02:59.9]}
2... d5 {[%clk 0:03:00.3]} 3. e5 {[%clk 0:02:58.1]} 3... c5 {[%clk 0:03:00.3]}
4. dxc5 {[%clk 0:02:55.6]} 4... e6 {[%clk 0:03:00.7]} 5. Be3 {[%clk 0:02:51.3]}
5... Nd7 {[%clk 0:02:58.1]} 6. Nf3 {[%clk 0:02:42.3]} 6... Nh6 {[%clk
0:02:45.1]} 7. c3 {[%clk 0:02:39.3]} 7... Nf5 {[%clk 0:02:36.9]} 8. Bd4 {[%clk
0:02:39.3]} 8... Nxc5 {[%clk 0:02:36.4]} 9. Bxc5 {[%clk 0:01:28.4]} 9... Bxc5
{[%clk 0:02:35.3]} 10. Bd3 {[%clk 0:01:28.8]} 10... Nh6 {[%clk 0:02:17.6]} 11.
O-O {[%clk 0:01:22.3]} 11... O-O {[%clk 0:02:17.7]} 12. Qe2 {[%clk 0:01:21.7]}
12... f6 {[%clk 0:02:09.2]} 13. h3 {[%clk 0:01:06.3]} 13... Nf7 {[%clk
0:01:55.6]} 14. Nbd2 {[%clk 0:00:55.1]} 14... Bd7 {[%clk 0:01:15.9]} 15. Rae1
{[%clk 0:00:53.6]} 15... Bb6 {[%clk 0:01:08.8]} 16. Nb3 {[%clk 0:00:48.9]} 16...
fxe5 {[%clk 0:01:01.4]} 17. Nxe5 {[%clk 0:00:47.3]} 17... Nxe5 {[%clk
0:01:02.3]} 18. Qxe5 {[%clk 0:00:47]} 18... Qf6 {[%clk 0:01:00.1]} 19. Nd4
{[%clk 0:00:29.1]} 19... Rae8 {[%clk 0:00:57.4]} 20. Qd6 {[%clk 0:00:16.4]}
20... Bc8 {[%clk 0:00:48.7]} 21. Nf3 {[%clk 0:00:16.3]} 21... Rd8 {[%clk
0:00:38.7]} 22. Qg3 {[%clk 0:00:14.6]} 22... Qf4 {[%clk 0:00:34.9]} 23. Qxf4
{[%clk 0:00:14.1]} 23... Rxf4 {[%clk 0:00:35.8]} 24. Ne5 {[%clk 0:00:13.4]}
24... Rdf8 {[%clk 0:00:36.3]} 25. Re2 {[%clk 0:00:13.3]} 25... R4f6 {[%clk
0:00:18.7]} 26. g3 {[%clk 0:00:12.8]} 26... g5 {[%clk 0:00:19]} 27. Kg2 {[%clk
0:00:13.1]} 27... Kg7 {[%clk 0:00:19.4]} 28. Ng4 {[%clk 0:00:11.5]} 28... R6f7
{[%clk 0:00:19]} 29. Ne5 {[%clk 0:00:11.7]} 29... Rc7 {[%clk 0:00:19.2]} 30. Nf3
{[%clk 0:00:10.8]} 30... h6 {[%clk 0:00:18.9]} 31. Ne5 {[%clk 0:00:11.1]} 31...
Bc5 {[%clk 0:00:18.8]} 32. f4 {[%clk 0:00:11.2]} 32... gxf4 {[%clk 0:00:18.6]}
33. gxf4 {[%clk 0:00:11.6]} 33... Rg8 {[%clk 0:00:16.1]} 34. Kf3 {[%clk
0:00:11.5]} 34... Kf8 {[%clk 0:00:16.4]} 35. Ng6+ {[%clk 0:00:10.1]} 35... Kf7
{[%clk 0:00:15]} 36. Ne5+ {[%clk 0:00:10.3]} 36... Ke7 {[%clk 0:00:15.2]} 37.
Rfe1 {[%clk 0:00:09.9]} 37... Kd6 {[%clk 0:00:15.4]} 38. Ng4 {[%clk 0:00:08.5]}
38... Rcg7 {[%clk 0:00:13]} 39. Rg2 {[%clk 0:00:04.8]} 39... h5 {[%clk
0:00:13.1]} 40. Ne3 {[%clk 0:00:05]} 40... Rxg2 {[%clk 0:00:13.2]} 41. Nxg2
{[%clk 0:00:05.9]} 41... Bd7 {[%clk 0:00:12.9]} 42. b4 {[%clk 0:00:04.7]} 42...
Bb6 {[%clk 0:00:13]} 43. Re2 {[%clk 0:00:05.2]} 43... Rc8 {[%clk 0:00:13.6]} 44.
Rc2 {[%clk 0:00:04.4]} 44... Ba4 {[%clk 0:00:14.3]} 45. Rc1 {[%clk 0:00:04.3]}
45... Bc6 {[%clk 0:00:15]} 46. Ke2 {[%clk 0:00:03.7]} 46... Rg8 {[%clk
0:00:14.7]} 47. Ne3 {[%clk 0:00:03.7]} 47... Rg3 {[%clk 0:00:15.4]} 48. Nf1
{[%clk 0:00:02.9]} 48... Rxh3 {[%clk 0:00:15.6]} 49. c4 {[%clk 0:00:03.4]} 49...
dxc4 {[%clk 0:00:16]} 50. Bxc4 {[%clk 0:00:03.5]} 50... Bf3+ {[%clk 0:00:16.1]}
51. Ke1 {[%clk 0:00:03.6]} 51... h4 {[%clk 0:00:13.7]} 52. Be2 {[%clk
0:00:03.9]} 52... Bd5 {[%clk 0:00:13]} 53. Rd1 {[%clk 0:00:03.6]} 53... Rh1
{[%clk 0:00:12.9]} 54. Bf3 {[%clk 0:00:03.6]} 54... Rh3 {[%clk 0:00:09.8]} 55.
Bxd5 {[%clk 0:00:03.2]} 55... exd5 {[%clk 0:00:10.7]} 56. Ke2 {[%clk 0:00:03.2]}
56... Ra3 {[%clk 0:00:10.3]} 57. Rd2 {[%clk 0:00:02.6]} 57... h3 {[%clk
0:00:10.9]} 58. f5 {[%clk 0:00:03]} 58... Ke5 {[%clk 0:00:11.5]} 59. f6 {[%clk
0:00:03.3]} 59... Kxf6 {[%clk 0:00:12.2]} 60. Rxd5 {[%clk 0:00:03.7]} 60... h2
{[%clk 0:00:12.7]} 61. Nxh2 {[%clk 0:00:03.2]} 61... Rxa2+ {[%clk 0:00:12.8]}
62. Rd2 {[%clk 0:00:04.1]} 62... Ra4 {[%clk 0:00:10.5]} 63. Rb2 {[%clk
0:00:04.3]} 63... Ke5 {[%clk 0:00:10]} 64. Nf3+ {[%clk 0:00:04.1]} 64... Ke4
{[%clk 0:00:10.5]} 65. Nd2+ {[%clk 0:00:04.9]} 65... Kd4 {[%clk 0:00:11.1]} 66.
Nb3+ {[%clk 0:00:05]} 66... Kc3 {[%clk 0:00:11.5]} 67. Nd2 {[%clk 0:00:05.9]}
67... Kxb2 {[%clk 0:00:11.5]} 0-1

[Event "*** SCC Grand Prix: Titled Tuesday Blitz"]
[Site "Chess.com"]
[Date "2020.10.13"]
[Round "3"]
[White "annazero"]
[Black "VitaliyBernadskiy"]
[Result "0-1"]
[WhiteElo "2354"]
[BlackElo "2744"]
[TimeControl "180+1"]
[EndTime "10:30:21 PDT"]
[Termination "VitaliyBernadskiy won by checkmate"]

1. d4 {[%clk 0:03:00.9]} 1... g6 {[%clk 0:02:59.9]} 2. Nf3 {[%clk 0:03:01.2]}
2... Bg7 {[%clk 0:03:00.1]} 3. g3 {[%clk 0:03:00.9]} 3... c5 {[%clk 0:03:00.2]}
4. c3 {[%clk 0:02:59.1]} 4... Qa5 {[%clk 0:02:59.4]} 5. dxc5 {[%clk 0:02:56.3]}
5... Qxc5 {[%clk 0:02:58.9]} 6. Bg2 {[%clk 0:02:54.6]} 6... Nf6 {[%clk
0:02:58.9]} 7. O-O {[%clk 0:02:54.9]} 7... O-O {[%clk 0:02:59]} 8. Nbd2 {[%clk
0:02:53.1]} 8... d6 {[%clk 0:02:57.8]} 9. e4 {[%clk 0:02:51.4]} 9... Nbd7 {[%clk
0:02:45.3]} 10. Re1 {[%clk 0:02:51.2]} 10... Qc7 {[%clk 0:02:43.9]} 11. Nb3
{[%clk 0:02:47.4]} 11... b6 {[%clk 0:02:37]} 12. Nfd4 {[%clk 0:02:43.7]} 12...
Bb7 {[%clk 0:02:33.4]} 13. Bg5 {[%clk 0:02:41.1]} 13... a6 {[%clk 0:02:32.4]}
14. Qd2 {[%clk 0:02:23.8]} 14... Ne5 {[%clk 0:02:32.4]} 15. Re2 {[%clk
0:02:05.9]} 15... Nc4 {[%clk 0:02:29.5]} 16. Qc1 {[%clk 0:02:05.2]} 16... e5
{[%clk 0:02:24.8]} 17. Nc2 {[%clk 0:02:02.9]} 17... Rac8 {[%clk 0:02:14.9]} 18.
f3 {[%clk 0:01:59.8]} 18... d5 {[%clk 0:02:11]} 19. exd5 {[%clk 0:01:45.2]}
19... Nxd5 {[%clk 0:02:11.9]} 20. Ne3 {[%clk 0:01:37.1]} 20... Ndxe3 {[%clk
0:02:00.9]} 21. Bxe3 {[%clk 0:01:36]} 21... Bd5 {[%clk 0:01:51.6]} 22. Bh6
{[%clk 0:01:25.1]} 22... Qc6 {[%clk 0:01:51.5]} 23. Bxg7 {[%clk 0:01:22.9]}
23... Kxg7 {[%clk 0:01:52.4]} 24. Qf1 {[%clk 0:01:22.7]} 24... Rfe8 {[%clk
0:01:47.7]} 25. Rd1 {[%clk 0:01:10.8]} 25... a5 {[%clk 0:01:46.1]} 26. Nc1
{[%clk 0:01:09.3]} 26... b5 {[%clk 0:01:43.7]} 27. b3 {[%clk 0:01:03.2]} 27...
Nb6 {[%clk 0:01:41]} 28. Rd3 {[%clk 0:00:55.3]} 28... Rcd8 {[%clk 0:01:20.5]}
29. Red2 {[%clk 0:00:49.7]} 29... Rc8 {[%clk 0:01:17.7]} 30. Qd1 {[%clk
0:00:46.1]} 30... Qc5+ {[%clk 0:01:08.1]} 31. Kh1 {[%clk 0:00:44.4]} 31... Ba8
{[%clk 0:00:53.1]} 32. Qg1 {[%clk 0:00:42.8]} 32... Qxg1+ {[%clk 0:00:51.9]} 33.
Kxg1 {[%clk 0:00:43.3]} 33... Rc7 {[%clk 0:00:41.8]} 34. Rd6 {[%clk 0:00:34.8]}
34... Rxc3 {[%clk 0:00:36.2]} 35. Rxb6 {[%clk 0:00:26.2]} 35... Rxc1+ {[%clk
0:00:35.8]} 36. Kf2 {[%clk 0:00:26.3]} 36... Rc5 {[%clk 0:00:27.5]} 37. Bf1
{[%clk 0:00:25.8]} 37... Bc6 {[%clk 0:00:24.7]} 38. Rd6 {[%clk 0:00:22.3]} 38...
Rc2+ {[%clk 0:00:24.3]} 39. Ke3 {[%clk 0:00:21.2]} 39... Rc8 {[%clk 0:00:17.5]}
40. Bxb5 {[%clk 0:00:20.3]} 40... Bxb5 {[%clk 0:00:15.2]} 41. Rxb5 {[%clk
0:00:20.6]} 41... R8c3+ {[%clk 0:00:14.6]} 42. Ke4 {[%clk 0:00:20.9]} 42... Re2+
{[%clk 0:00:13.8]} 43. Kd5 {[%clk 0:00:20.8]} 43... Rxa2 {[%clk 0:00:08.6]} 44.
Kxe5 {[%clk 0:00:15.9]} 44... Rxf3 {[%clk 0:00:08.6]} 45. Ke4 {[%clk 0:00:15.2]}
45... Rc3 {[%clk 0:00:07.1]} 46. Rdb6 {[%clk 0:00:12.1]} 46... Rxh2 {[%clk
0:00:05.5]} 47. Rb7 {[%clk 0:00:09.6]} 47... Rxg3 {[%clk 0:00:05.4]} 48. Kf4
{[%clk 0:00:09.9]} 48... Rg1 {[%clk 0:00:04.7]} 49. Rxa5 {[%clk 0:00:10.8]}
49... Rf2+ {[%clk 0:00:04.7]} 50. Ke3 {[%clk 0:00:10.7]} 50... Rf6 {[%clk
0:00:05.6]} 51. Raa7 {[%clk 0:00:10.1]} 51... h5 {[%clk 0:00:05.5]} 52. Kd2
{[%clk 0:00:10.4]} 52... h4 {[%clk 0:00:05.8]} 53. Rb4 {[%clk 0:00:10.2]} 53...
Rg2+ {[%clk 0:00:06]} 54. Ke3 {[%clk 0:00:08.6]} 54... g5 {[%clk 0:00:06.9]} 55.
Re4 {[%clk 0:00:08.3]} 55... h3 {[%clk 0:00:06.3]} 56. Ra5 {[%clk 0:00:07.9]}
56... h2 {[%clk 0:00:05.5]} 57. Rxg5+ {[%clk 0:00:05.7]} 57... Rxg5 {[%clk
0:00:06.4]} 58. Rh4 {[%clk 0:00:05.3]} 58... Rh6 {[%clk 0:00:06.9]} 59. Ke4
{[%clk 0:00:06]} 59... Rxh4+ {[%clk 0:00:06.9]} 60. Ke3 {[%clk 0:00:05.7]} 60...
h1=Q {[%clk 0:00:07.2]} 61. b4 {[%clk 0:00:06.4]} 61... Rg3+ {[%clk 0:00:07.4]}
62. Ke2 {[%clk 0:00:07.2]} 62... Rh2# {[%clk 0:00:07.6]} 0-1

[Event "*** SCC Grand Prix: Titled Tuesday Blitz"]
[Site "Chess.com"]
[Date "2020.10.13"]
[Round "3"]
[White "icychess54"]
[Black "bait_or_mate"]
[Result "1/2-1/2"]
[WhiteElo "2289"]
[BlackElo "2514"]
[TimeControl "180+1"]
[EndTime "10:30:23 PDT"]
[Termination "Game drawn by repetition"]

1. c4 {[%clk 0:03:00.9]} 1... e6 {[%clk 0:02:59.3]} 2. Nf3 {[%clk 0:03:01.3]}
2... d5 {[%clk 0:02:58.8]} 3. e3 {[%clk 0:03:01.2]} 3... Nf6 {[%clk 0:02:58.5]}
4. Nc3 {[%clk 0:03:02]} 4... b6 {[%clk 0:02:58.5]} 5. Be2 {[%clk 0:03:02.5]}
5... Bb7 {[%clk 0:02:58]} 6. O-O {[%clk 0:03:03]} 6... a6 {[%clk 0:02:57.8]} 7.
b3 {[%clk 0:03:03.5]} 7... Bd6 {[%clk 0:02:58]} 8. Bb2 {[%clk 0:03:03.9]} 8...
Nbd7 {[%clk 0:02:58.2]} 9. Rc1 {[%clk 0:03:03.3]} 9... O-O {[%clk 0:02:58]} 10.
d4 {[%clk 0:03:03.6]} 10... Ne4 {[%clk 0:02:55.2]} 11. Nxe4 {[%clk 0:03:02.4]}
11... dxe4 {[%clk 0:02:56.1]} 12. Nd2 {[%clk 0:03:02]} 12... c5 {[%clk
0:02:53.6]} 13. f3 {[%clk 0:02:50.3]} 13... exf3 {[%clk 0:02:42]} 14. Bxf3
{[%clk 0:02:45.2]} 14... Bxf3 {[%clk 0:02:41]} 15. Qxf3 {[%clk 0:02:40.1]} 15...
Qe7 {[%clk 0:02:05.9]} 16. Ne4 {[%clk 0:02:35.6]} 16... Rad8 {[%clk 0:01:06.8]}
17. Rcd1 {[%clk 0:02:08.9]} 17... Bc7 {[%clk 0:00:38.3]} 18. d5 {[%clk
0:01:59.2]} 18... exd5 {[%clk 0:00:35.4]} 19. cxd5 {[%clk 0:02:00.1]} 19... Be5
{[%clk 0:00:20.3]} 20. Bxe5 {[%clk 0:01:17.1]} 20... Qxe5 {[%clk 0:00:21.2]} 21.
Ng3 {[%clk 0:01:16.2]} 21... Rde8 {[%clk 0:00:20.3]} 22. e4 {[%clk 0:01:15.3]}
22... Nf6 {[%clk 0:00:19.2]} 23. Rde1 {[%clk 0:01:12.8]} 23... Re7 {[%clk
0:00:19.1]} 24. Nf5 {[%clk 0:01:07.6]} 24... Rd7 {[%clk 0:00:18]} 25. Qf4 {[%clk
0:00:53.9]} 25... Qxf4 {[%clk 0:00:17.7]} 26. Rxf4 {[%clk 0:00:54.4]} 26... Re8
{[%clk 0:00:16.7]} 27. d6 {[%clk 0:00:36.7]} 27... g6 {[%clk 0:00:09.6]} 28.
Ne7+ {[%clk 0:00:32.1]} 28... Kg7 {[%clk 0:00:09.4]} 29. e5 {[%clk 0:00:30.5]}
29... Ng8 {[%clk 0:00:09.2]} 30. Ref1 {[%clk 0:00:29.8]} 30... Rf8 {[%clk
0:00:08.1]} 31. e6 {[%clk 0:00:19]} 31... Rxd6 {[%clk 0:00:06.3]} 32. Rxf7+
{[%clk 0:00:18.6]} 32... Rxf7 {[%clk 0:00:06.6]} 33. Rxf7+ {[%clk 0:00:18.5]}
33... Kh8 {[%clk 0:00:06.1]} 34. Rf8 {[%clk 0:00:18.1]} 34... Kg7 {[%clk
0:00:06.4]} 35. Rxg8+ {[%clk 0:00:17.4]} 35... Kf6 {[%clk 0:00:06.9]} 36. Nc8
{[%clk 0:00:16.1]} 36... Rxe6 {[%clk 0:00:06.7]} 37. h3 {[%clk 0:00:16.4]} 37...
b5 {[%clk 0:00:06.4]} 38. Rd8 {[%clk 0:00:15.7]} 38... Ke5 {[%clk 0:00:05]} 39.
Kf2 {[%clk 0:00:14.5]} 39... c4 {[%clk 0:00:05]} 40. Ke3 {[%clk 0:00:13.4]}
40... cxb3 {[%clk 0:00:04.5]} 41. axb3 {[%clk 0:00:13.1]} 41... a5 {[%clk
0:00:04.6]} 42. Na7 {[%clk 0:00:12.2]} 42... a4 {[%clk 0:00:04.4]} 43. Nxb5
{[%clk 0:00:10.6]} 43... axb3 {[%clk 0:00:04.2]} 44. Nd4 {[%clk 0:00:10.2]}
44... Rb6 {[%clk 0:00:04.3]} 45. Re8+ {[%clk 0:00:09.2]} 45... Kf6 {[%clk
0:00:04.7]} 46. Rf8+ {[%clk 0:00:08.8]} 46... Kg7 {[%clk 0:00:04.8]} 47. Rf1
{[%clk 0:00:09.2]} 47... b2 {[%clk 0:00:05.3]} 48. Rb1 {[%clk 0:00:09.7]} 48...
Kf6 {[%clk 0:00:05.6]} 49. Ne2 {[%clk 0:00:09.7]} 49... Ke5 {[%clk 0:00:05.7]}
50. Nc3 {[%clk 0:00:09.9]} 50... Rb3 {[%clk 0:00:05.7]} 51. Kd3 {[%clk
0:00:09.4]} 51... Kf4 {[%clk 0:00:06.2]} 52. Kc2 {[%clk 0:00:09.3]} 52... Rb8
{[%clk 0:00:06.2]} 53. Rxb2 {[%clk 0:00:09.7]} 53... Rxb2+ {[%clk 0:00:06.5]}
54. Kxb2 {[%clk 0:00:09.4]} 54... Kg3 {[%clk 0:00:07.4]} 55. Kc2 {[%clk
0:00:06.3]} 55... Kxg2 {[%clk 0:00:07.6]} 56. Kd3 {[%clk 0:00:07.2]} 56... Kxh3
{[%clk 0:00:07.8]} 57. Ke3 {[%clk 0:00:08.1]} 57... Kg2 {[%clk 0:00:06.4]} 58.
Ne2 {[%clk 0:00:07.2]} 58... g5 {[%clk 0:00:05.6]} 59. Nf4+ {[%clk 0:00:06.9]}
59... Kg3 {[%clk 0:00:03.4]} 60. Nh5+ {[%clk 0:00:06.5]} 60... Kh4 {[%clk
0:00:03.3]} 61. Nf6 {[%clk 0:00:06.1]} 61... h6 {[%clk 0:00:03.8]} 62. Kf3
{[%clk 0:00:06.2]} 62... h5 {[%clk 0:00:03.8]} 63. Kg2 {[%clk 0:00:06.4]} 63...
g4 {[%clk 0:00:04.2]} 64. Nxg4 {[%clk 0:00:05.2]} 64... hxg4 {[%clk 0:00:03.8]}
65. Kh2 {[%clk 0:00:05.7]} 65... g3+ {[%clk 0:00:04]} 66. Kg2 {[%clk 0:00:05.9]}
66... Kg4 {[%clk 0:00:04.9]} 67. Kg1 {[%clk 0:00:06.3]} 67... Kf3 {[%clk
0:00:05.8]} 68. Kf1 {[%clk 0:00:06.6]} 68... Kf4 {[%clk 0:00:05.6]} 69. Kg2
{[%clk 0:00:07.1]} 69... Kg4 {[%clk 0:00:06.5]} 70. Kg1 {[%clk 0:00:07.4]} 70...
Kh3 {[%clk 0:00:06.9]} 71. Kh1 {[%clk 0:00:07.7]} 71... Kh4 {[%clk 0:00:06.6]}
72. Kg2 {[%clk 0:00:08]} 72... Kg4 {[%clk 0:00:06.8]} 1/2-1/2